fUST/lending_fUST_20240613
["ID","MTS","AMOUNT","RATE_DAILY","PERIOD"]
[329292555,1718220644829,-500.0,0.00016438,2]
[329292557,1718220644852,-500.0,0.00016438,2]
[329292559,1718220644888,-500.0,0.00016438,2]
[329292561,1718220644904,-500.0,0.00016438,2]
[329292563,1718220644922,-500.0,0.00016438,2]
[329292565,1718220644938,-500.0,0.00016438,2]
[329292566,1718220644951,-584.80523407,0.00016438,2]
[329292568,1718220644970,-500.0,0.00016438,2]
[329292570,1718220644989,-512.37213816,0.00016438,2]
[329292572,1718220645013,-500.0,0.00016438,2]
[329292575,1718220645045,-500.0,0.00016438,2]
[329292577,1718220645065,-500.0,0.00016438,2]
[329292579,1718220645079,-500.0,0.00016438,2]
[329292581,1718220645095,-500.0,0.00016438,2]
[329292583,1718220645124,-501.57820878,0.00016438,2]
[329292585,1718220645150,-500.0,0.00016438,2]
[329292587,1718220645170,-500.0,0.00016438,2]
[329292589,1718220645182,-500.0,0.00016438,2]
[329292591,1718220645199,-576.55,0.00016438,2]
[329292593,1718220645210,-500.0,0.00016438,2]
[329292596,1718220645233,-500.0,0.00016438,2]
[329292598,1718220645250,-1399.88,0.00016438,2]
[329292600,1718220645277,-744.83,0.00016438,2]
[329292605,1718220645397,-500.0,0.00016438,2]
[329292607,1718220645417,-500.0,0.00016438,4]
[329292609,1718220645446,-250.0,0.00016438,2]
[329292611,1718220645469,-500.0,0.00016438,2]
[329292613,1718220645488,-500.0,0.00016438,2]
[329292615,1718220645512,-500.0,0.00016438,2]
[329292617,1718220645535,-711.69,0.00016438,2]
[329292618,1718220645553,-1144.53,0.00016438,2]
[329292621,1718220645577,-500.0,0.00016438,2]
[329292624,1718220645590,-500.0,0.00016438,2]
[329292626,1718220645611,-500.0,0.00016438,2]
[329292628,1718220645631,-3420.82,0.00016438,2]
[329292630,1718220645648,-500.0,0.00016438,2]
[329292631,1718220645673,-492.9650101,0.00016438,2]
[329292633,1718220645698,-500.0,0.00016438,2]
[329292635,1718220645720,-4199.95,0.00016438,2]
[329292638,1718220645749,-500.0,0.00016438,2]
[329292641,1718220645790,-500.0,0.00016438,2]
[329292643,1718220645809,-500.0,0.00016438,2]
[329292645,1718220645833,-522.25239558,0.00016438,2]
[329292647,1718220645856,-500.0,0.00016438,2]
[329292649,1718220645870,-500.0,0.00016438,2]
[329292651,1718220645885,-500.0,0.00016438,2]
[329292654,1718220645928,-750.65,0.00016438,2]
[329292656,1718220645944,-584.03,0.00016438,2]
[329292658,1718220645977,-500.0,0.00016438,2]
[329292660,1718220645995,-1030.83,0.00016438,2]
[329292662,1718220646016,-500.0,0.00016438,2]
[329292665,1718220646053,-500.0,0.00016438,2]
[329292667,1718220646079,-500.0,0.00016438,2]
[329292669,1718220646093,-500.0,0.00016438,2]
[329292671,1718220646106,-509.10602516,0.00016438,2]
[329292674,1718220646122,-500.0,0.00016438,2]
[329292676,1718220646141,-500.0,0.00016438,2]
[329292678,1718220646151,-500.0,0.00016438,2]
[329292680,1718220646164,-500.0,0.00016438,2]
[329292682,1718220646180,-500.0,0.00016438,2]
[329292684,1718220646192,-500.0,0.00016438,2]
[329292686,1718220646204,-4482.52,0.00016438,2]
[329292688,1718220646215,-500.0,0.00016438,2]
[329292689,1718220646227,-500.0,0.00016438,2]
[329292691,1718220646240,-500.94126061,0.00016438,2]
[329292694,1718220646269,-503.83120065,0.00016438,2]
[329292696,1718220646286,-500.0,0.00016438,2]
[329292698,1718220646300,-1924.46,0.00016438,2]
[329292700,1718220646315,-500.0,0.00016438,2]
[329292703,1718220646330,-7018.01,0.00016438,2]
[329292704,1718220646344,-500.0,0.00016438,2]
[329292706,1718220646364,-500.0,0.00016438,2]
[329292708,1718220646378,-500.0,0.00016438,2]
[329292710,1718220646393,-500.0,0.00016438,2]
[329292712,1718220646406,-500.0,0.00016438,2]
[329292713,1718220646418,-2553.46,0.00016438,2]
[329292715,1718220646431,-500.0,0.00016438,2]
[329292718,1718220646448,-500.0,0.00016438,2]
[329292720,1718220646459,-500.0,0.00016438,2]
[329292722,1718220646470,-595.65055958,0.00016438,2]
[329292724,1718220646498,-500.0,0.00016438,2]
[329292726,1718220646527,-501.57776045,0.00016438,2]
[329292728,1718220646539,-500.0,0.00016438,2]
[329292730,1718220646550,-441.57211689,0.00016438,2]
[329292732,1718220646562,-500.0,0.00016438,2]
[329292734,1718220646575,-500.0,0.00016438,2]
[329292736,1718220646586,-587.75024647,0.00016438,2]
[329292738,1718220646597,-75.43510891,0.00016438,2]
[329292751,1718220646801,-424.56489109,0.00016438,2]
[329292752,1718220646813,-502.34291741,0.00016438,2]
[329292755,1718220646832,-500.0,0.00016438,2]
[329292756,1718220646844,-509.81974559,0.00016438,2]
[329292758,1718220646855,-364.53588936,0.00016438,2]
[329292761,1718220646867,-500.0,0.00016438,2]
[329292762,1718220646883,-500.0,0.00016438,2]
[329292765,1718220646917,-500.0,0.00016438,2]
[329292767,1718220646929,-702.6,0.00016438,2]
[329292769,1718220646948,-500.0,0.00016438,2]
[329292771,1718220646960,-500.0,0.00016438,2]
[329292773,1718220646974,-500.0,0.00016438,2]
[329292775,1718220646993,-500.0,0.00016438,2]
[329292776,1718220647061,-821.16,0.00016438,2]
[329292777,1718220647073,-500.0,0.00016438,2]
[329292778,1718220647085,-500.0,0.00016438,2]
[329292779,1718220647096,-500.0,0.00016438,2]
[329292780,1718220647108,-500.0,0.00016438,2]
[329292781,1718220647128,-500.0,0.00016438,2]
[329292782,1718220647141,-500.0,0.00016438,2]
[329292783,1718220647152,-500.0,0.00016438,2]
[329292785,1718220647166,-500.0,0.00016438,2]
[329292787,1718220647179,-500.0,0.00016438,2]
[329292789,1718220647192,-500.0,0.00016438,2]
[329292791,1718220647206,-500.0,0.00016438,2]
[329292794,1718220647224,-500.0,0.00016438,2]
[329292795,1718220647248,-500.0,0.00016438,2]
[329292797,1718220647280,-500.0,0.00016438,2]
[329292799,1718220647296,-500.0,0.00016438,2]
[329292801,1718220647308,-500.0,0.00016438,2]
[329292803,1718220647320,-500.0,0.00016438,2]
[329292805,1718220647335,-500.0,0.00016438,2]
[329292806,1718220647347,-5404.03,0.00016438,2]
[329292808,1718220647359,-500.0,0.00016438,2]
[329292810,1718220647373,-500.0,0.00016438,2]
[329292812,1718220647387,-500.0,0.00016438,2]
[329292814,1718220647402,-413.81334674,0.00016438,2]
[329292816,1718220647413,-500.0,0.00016438,2]
[329292818,1718220647425,-511.04,0.00016438,2]
[329292820,1718220647435,-797.6,0.00016438,2]
[329292822,1718220647446,-500.0,0.00016438,2]
[329292823,1718220647457,-505.04818177,0.00016438,2]
[329292825,1718220647469,-500.0,0.00016438,2]
[329292827,1718220647484,-1096.22,0.00016438,2]
[329292829,1718220647509,-500.0,0.00016438,2]
[329292832,1718220647540,-436.24438275,0.00016438,2]
[329292834,1718220647588,-500.0,0.00016438,2]
[329292835,1718220647600,-500.0,0.00016438,2]
[329292837,1718220647612,-500.0,0.00016438,2]
[329292839,1718220647628,-1703.96,0.00016438,2]
[329292841,1718220647642,-744.68,0.00016438,2]
[329292843,1718220647656,-500.0,0.00016438,2]
[329292845,1718220647675,-500.0,0.00016438,2]
[329292859,1718220647867,-500.0,0.00016438,2]
[329292861,1718220647882,-500.0,0.00016438,2]
[329292863,1718220647908,-500.0,0.00016438,2]
[329292864,1718220647925,-500.0,0.00016438,2]
[329292866,1718220647943,-614.12,0.00016438,2]
[329292868,1718220647954,-500.0,0.00016438,2]
[329292869,1718220647966,-1404.54,0.00016438,2]
[329292870,1718220647978,-500.0,0.00016438,2]
[329292872,1718220647992,-500.0,0.00016438,2]
[329292874,1718220648004,-500.0,0.00016438,2]
[329292876,1718220648016,-500.0,0.00016438,2]
[329292878,1718220648026,-500.0,0.00016438,2]
[329292880,1718220648038,-500.0,0.00016438,2]
[329292882,1718220648053,-500.0,0.00016438,2]
[329292884,1718220648070,-500.0,0.00016438,2]
[329292886,1718220648082,-500.0,0.00016438,2]
[329292888,1718220648094,-501.9904281,0.00016438,2]
[329292890,1718220648107,-535.26953597,0.00016438,2]
[329292892,1718220648119,-500.0,0.00016438,2]
[329292894,1718220648133,-500.0,0.00016438,2]
[329292896,1718220648144,-500.0,0.00016438,2]
[329292898,1718220648155,-500.0,0.00016438,2]
[329292900,1718220648167,-500.0,0.00016438,2]
[329292902,1718220648181,-500.0,0.00016438,2]
[329292904,1718220648192,-501.31342103,0.00016438,2]
[329292906,1718220648214,-500.0,0.00016438,2]
[329292908,1718220648224,-500.0,0.00016438,2]
[329292910,1718220648240,-543.46,0.00016438,2]
[329292912,1718220648251,-543.46,0.00016438,2]
[329292914,1718220648265,-500.0,0.00016438,2]
[329292916,1718220648282,-500.0,0.00016438,2]
[329292917,1718220648298,-582.09,0.00016438,2]
[329292918,1718220648311,-500.0,0.00016438,2]
[329292919,1718220648326,-849.77,0.00016438,2]
[329292920,1718220648337,-500.0,0.00016438,2]
[329292921,1718220648349,-500.0,0.00016438,2]
[329292922,1718220648359,-165.27354263,0.00016711,2]
[329292923,1718220648370,-500.0,0.00016711,2]
[329292924,1718220648382,-500.0,0.00016711,2]
[329292925,1718220648397,-500.0,0.00016711,2]
[329292926,1718220648430,-500.0,0.00016711,2]
[329292928,1718220648444,-500.0,0.00016711,2]
[329292929,1718220648488,-500.0,0.00016711,2]
[329292931,1718220648501,-500.0,0.00016711,2]
[329292932,1718220648517,-543.46,0.00016711,2]
[329292933,1718220648531,-543.46,0.00016711,2]
[329292934,1718220648542,-86858.45648685,0.00016712,15]
[329292935,1718220648563,-500.0,0.00016712,2]
[329292936,1718220648578,-500.0,0.00016712,2]
[329292937,1718220648589,-500.0,0.00016712,2]
[329292938,1718220648606,-500.0,0.00016712,2]
[329292939,1718220648631,-500.0,0.00016712,2]
[329292940,1718220648652,-500.0,0.00016712,2]
[329292941,1718220648677,-500.0,0.00016712,2]
[329292942,1718220648693,-500.0,0.00016712,2]
[329292943,1718220648705,-500.0,0.00016712,2]
[329292946,1718220648736,-500.0,0.00016712,2]
[329292948,1718220648760,-500.0,0.00016712,2]
[329292951,1718220648784,-500.0,0.00016712,2]
[329292952,1718220648799,-500.0,0.00016712,2]
[329292954,1718220648828,-500.0,0.00016712,2]
[329292957,1718220648849,-500.0,0.00016712,2]
[329292959,1718220648868,-547.61,0.00016712,2]
[329292963,1718220648920,-500.0,0.00016712,2]
[329292965,1718220648936,-548.81660986,0.00016712,2]
[329292967,1718220648948,-526.48,0.00016712,2]
[329292968,1718220648961,-500.0,0.00016712,2]
[329292971,1718220648979,-500.0,0.00016712,2]
[329292973,1718220648992,-500.0,0.00016712,2]
[329292975,1718220649005,-176.49226442,0.00016712,2]
[329292977,1718220649017,-500.0,0.00016712,2]
[329292979,1718220649035,-500.0,0.00016712,2]
[329292982,1718220649054,-500.0,0.00016712,2]
[329292984,1718220649068,-500.0,0.00016712,2]
[329292986,1718220649088,-543.61720899,0.00016712,2]
[329292988,1718220649103,-500.0,0.00016712,2]
[329292990,1718220649117,-521.33,0.00016712,2]
[329292991,1718220649128,-500.0,0.00016712,2]
[329292992,1718220649142,-500.0,0.00016712,2]
[329292994,1718220649155,-503.51431149,0.00016712,2]
[329292996,1718220649175,-500.0,0.00016712,2]
[329292998,1718220649188,-670.62,0.00016712,2]
[329292999,1718220649202,-500.0,0.00016712,2]
[329293001,1718220649215,-500.0,0.00016712,2]
[329293002,1718220649231,-500.0,0.00016712,2]
[329293003,1718220649250,-500.0,0.00016712,2]
[329293004,1718220649264,-500.0,0.00016712,2]
[329293006,1718220649280,-563.72800977,0.00016712,2]
[329293008,1718220649292,-500.0,0.00016712,2]
[329293010,1718220649305,-500.0,0.00016712,2]
[329293011,1718220649344,-500.0,0.00016712,2]
[329293012,1718220649356,-500.0,0.00016712,2]
[329293013,1718220649374,-500.0,0.00016712,2]
[329293016,1718220649395,-500.0,0.00016712,2]
[329293017,1718220649409,-500.0,0.00016712,2]
[329293020,1718220649435,-500.0,0.00016712,2]
[329293023,1718220649459,-500.0,0.00016712,2]
[329293024,1718220649477,-500.0,0.00016712,2]
[329293025,1718220649494,-500.0,0.00016712,2]
[329293026,1718220649512,-773.41,0.00016712,2]
[329293027,1718220649526,-500.0,0.00016712,2]
[329293028,1718220649544,-500.0,0.00016712,2]
[329293029,1718220649558,-500.0,0.00016712,2]
[329293030,1718220649574,-500.0,0.00016712,2]
[329293031,1718220649589,-570.81,0.00016712,2]
[329293032,1718220649604,-500.0,0.00016712,2]
[329293034,1718220649617,-500.0,0.00016712,2]
[329293035,1718220649654,-901.43,0.00016712,2]
[329293036,1718220649681,-500.0,0.00016712,2]
[329293037,1718220649699,-500.0,0.00016712,2]
[329293038,1718220649720,-500.0,0.00016712,2]
[329293039,1718220649732,-506.08390573,0.00016712,2]
[329293040,1718220649746,-500.0,0.00016712,2]
[329293041,1718220649758,-500.0,0.00016712,2]
[329293042,1718220649770,-500.0,0.00016712,2]
[329293043,1718220649790,-500.0,0.00016712,2]
[329293044,1718220649802,-517.98234788,0.00016712,2]
[329293045,1718220649815,-500.0,0.00016712,2]
[329293046,1718220649829,-170.60701289,0.00016712,2]
[329293047,1718220649859,-500.0,0.00016712,2]
[329293048,1718220649871,-500.0,0.00016712,2]
[329293049,1718220649909,-500.0,0.00016712,2]
[329293050,1718220649924,-500.0,0.00016712,2]
[329293051,1718220649941,-500.0,0.00016712,2]
[329293052,1718220649952,-500.0,0.00016712,2]
[329293053,1718220649965,-566.86197237,0.00016712,2]
[329293054,1718220649979,-501.51613761,0.00016712,2]
[329293055,1718220649990,-500.0,0.00016712,2]
[329293056,1718220650001,-500.0,0.00016712,2]
[329293057,1718220650012,-500.0,0.00016712,2]
[329293058,1718220650023,-500.0,0.00016712,2]
[329293059,1718220650035,-576.55,0.00016712,2]
[329293060,1718220650057,-500.0,0.00016712,2]
[329293061,1718220650074,-500.0,0.00016712,2]
[329293062,1718220650086,-1399.88,0.00016712,2]
[329293063,1718220650098,-744.83,0.00016712,2]
[329293064,1718220650110,-500.0,0.00016712,2]
[329293065,1718220650129,-500.0,0.00016712,4]
[329293066,1718220650152,-250.0,0.00016712,2]
[329293067,1718220650166,-500.0,0.00016712,2]
[329293068,1718220650193,-500.0,0.00016712,2]
[329293069,1718220650209,-711.69,0.00016712,2]
[329293070,1718220650229,-1144.53,0.00016712,2]
[329293071,1718220650241,-500.0,0.00016712,2]
[329293072,1718220650252,-320.99,0.00016712,2]
[329293073,1718220650267,-500.0,0.00016712,2]
[329293074,1718220650279,-3420.82,0.00016712,2]
[329293075,1718220650293,-500.0,0.00016712,2]
[329293076,1718220650307,-500.0,0.00016712,2]
[329293077,1718220650322,-4199.95,0.00016712,2]
[329293078,1718220650336,-500.0,0.00016712,2]
[329293079,1718220650348,-500.0,0.00016712,2]
[329293080,1718220650358,-500.0,0.00016712,2]
[329293081,1718220650374,-750.65,0.00016712,2]
[329293082,1718220650389,-584.03,0.00016712,2]
[329293083,1718220650402,-500.0,0.00016712,2]
[329293084,1718220650416,-1030.83,0.00016712,2]
[329293085,1718220650428,-500.0,0.00016712,2]
[329293086,1718220650448,-500.0,0.00016712,2]
[329293087,1718220650464,-500.0,0.00016712,2]
[329293088,1718220650478,-500.0,0.00016712,2]
[329293089,1718220650490,-500.0,0.00016712,2]
[329293090,1718220650504,-500.0,0.00016712,2]
[329293091,1718220650517,-500.0,0.00016712,2]
[329293092,1718220650539,-4482.52,0.00016712,2]
[329293093,1718220650551,-500.0,0.00016712,2]
[329293094,1718220650563,-500.0,0.00016712,2]
[329293095,1718220650574,-500.0,0.00016712,2]
[329293096,1718220650592,-1924.46,0.00016712,2]
[329293097,1718220650604,-333.0922486,0.00016712,2]
[329293098,1718220650616,-158.54329725,0.00016712,2]
[329293099,1718220650632,-500.0,0.00016712,2]
[329293100,1718220650648,-500.0,0.00016712,2]
[329293101,1718220650661,-500.0,0.00016712,2]
[329293102,1718220650678,-2553.46,0.00016712,2]
[329293103,1718220650690,-612.8838084,0.00016712,2]
[329293104,1718220650703,-500.0,0.00016712,2]
[329293105,1718220650719,-7018.01,0.00016712,2]
[329293106,1718220650731,-500.0,0.00016712,2]
[329293107,1718220650748,-500.0,0.00016712,2]
[329293108,1718220650763,-500.0,0.00016712,2]
[329293109,1718220650779,-500.0,0.00016712,2]
[329293110,1718220650794,-500.0,0.00016712,2]
[329293111,1718220650806,-500.0,0.00016712,2]
[329293112,1718220650823,-500.0,0.00016712,2]
[329293113,1718220650837,-702.6,0.00016712,2]
[329293114,1718220650851,-500.0,0.00016712,2]
[329293115,1718220650862,-477.22471711,0.00016712,2]
[329293116,1718220650876,-821.16,0.00016712,2]
[329293117,1718220650892,-274.69931376,0.00016712,2]
[329293118,1718220650904,-500.0,0.00016712,2]
[329293119,1718220650923,-502.89719724,0.00016712,2]
[329293120,1718220650936,-500.0,0.00016712,2]
[329293121,1718220650948,-563.69483236,0.00016712,2]
[329293122,1718220650964,-500.0,0.00016712,2]
[329293123,1718220650976,-500.0,0.00016712,2]
[329293124,1718220650990,-500.0,0.00016712,2]
[329293125,1718220651001,-500.0,0.00016712,2]
[329293126,1718220651014,-500.0,0.00016712,2]
[329293127,1718220651026,-500.0,0.00016712,2]
[329293128,1718220651040,-500.0,0.00016712,2]
[329293129,1718220651052,-500.0,0.00016712,2]
[329293130,1718220651065,-500.0,0.00016712,2]
[329293131,1718220651079,-500.0,0.00016712,2]
[329293132,1718220651091,-5404.03,0.00016712,2]
[329293133,1718220651103,-500.0,0.00016712,2]
[329293134,1718220651114,-500.0,0.00016712,2]
[329293135,1718220651126,-511.04,0.00016712,2]
[329293136,1718220651140,-500.0,0.00016712,2]
[329293137,1718220651151,-797.6,0.00016712,2]
[329293138,1718220651165,-500.0,0.00016712,2]
[329293139,1718220651179,-1096.22,0.00016712,2]
[329293140,1718220651191,-500.0,0.00016712,2]
[329293141,1718220651202,-500.0,0.00016712,2]
[329293142,1718220651215,-1703.96,0.00016712,2]
[329293143,1718220651227,-744.68,0.00016712,2]
[329293144,1718220651238,-500.0,0.00016712,2]
[329293145,1718220651250,-500.0,0.00016712,2]
[329293146,1718220651262,-525.55959883,0.00016712,2]
[329293147,1718220651277,-500.0,0.00016712,2]
[329293148,1718220651289,-614.12,0.00016712,2]
[329293149,1718220651303,-500.0,0.00016712,2]
[329293150,1718220651315,-1404.54,0.00016712,2]
[329293151,1718220651329,-500.0,0.00016712,2]
[329293152,1718220651339,-500.0,0.00016712,2]
[329293153,1718220651350,-500.0,0.00016712,2]
[329293154,1718220651361,-500.0,0.00016712,2]
[329293155,1718220651372,-500.0,0.00016712,2]
[329293156,1718220651386,-500.0,0.00016712,2]
[329293157,1718220651398,-500.0,0.00016712,2]
[329293158,1718220651409,-500.0,0.00016712,2]
[329293159,1718220651419,-582.09,0.00016712,2]
[329293160,1718220651428,-500.0,0.00016712,2]
[329293161,1718220651440,-849.77,0.00016712,2]
[329293162,1718220651452,-500.0,0.00016712,2]
[329293163,1718220651465,-500.0,0.00016712,2]
[329293164,1718220651476,-500.0,0.00016984,2]
[329293165,1718220651487,-500.0,0.00016984,2]
[329293166,1718220651499,-543.46,0.00016984,2]
[329293167,1718220651511,-500.0,0.00016985,2]
[329293168,1718220651526,-500.0,0.00016985,2]
[329293169,1718220651541,-500.0,0.00016985,2]
[329293170,1718220651553,-543.46,0.00016985,2]
[329293171,1718220651572,-543.46,0.00016985,2]
[329293172,1718220651589,-500.0,0.00016986,2]
[329293173,1718220651602,-500.0,0.00016986,2]
[329293174,1718220651616,-233.99007782,0.00016986,2]
[329293175,1718220651626,-500.0,0.00016986,2]
[329293176,1718220651643,-500.0,0.00016986,2]
[329293177,1718220651656,-500.0,0.00016986,2]
[329293178,1718220651684,-372.17,0.00016986,2]
[329293179,1718220651708,-547.61,0.00016986,2]
[329293180,1718220651720,-500.0,0.00016986,2]
[329293181,1718220651733,-526.48,0.00016986,2]
[329293182,1718220651752,-500.0,0.00016986,2]
[329293183,1718220651772,-500.0,0.00016986,2]
[329293184,1718220651791,-500.0,0.00016986,2]
[329293185,1718220651810,-245.91756106,0.00016986,2]
[329293186,1718220651843,-198.35,0.00016986,2]
[329293187,1718220651854,-521.33,0.00016986,2]
[329293188,1718220651868,-500.0,0.00016986,2]
[329293189,1718220651888,-500.0,0.00016986,2]
[329293190,1718220651923,-500.0,0.00016986,2]
[329293191,1718220651936,-670.62,0.00016986,2]
[329293192,1718220651950,-500.0,0.00016986,2]
[329293193,1718220651961,-500.0,0.00016986,2]
[329293194,1718220651973,-500.0,0.00016986,2]
[329293195,1718220651991,-500.0,0.00016986,2]
[329293196,1718220652003,-500.0,0.00016986,2]
[329293197,1718220652020,-153.88,0.00016986,2]
[329293198,1718220652033,-500.0,0.00016986,2]
[329293199,1718220652048,-500.0,0.00016986,2]
[329293200,1718220652061,-500.0,0.00016986,2]
[329293201,1718220652084,-500.0,0.00016986,2]
[329293202,1718220652100,-500.0,0.00016986,2]
[329293203,1718220652115,-500.0,0.00016986,2]
[329293204,1718220652126,-500.0,0.00016986,2]
[329293205,1718220652144,-773.41,0.00016986,2]
[329293206,1718220652158,-500.0,0.00016986,2]
[329293207,1718220652168,-500.0,0.00016986,2]
[329293208,1718220652181,-570.81,0.00016986,2]
[329293209,1718220652198,-500.0,0.00016986,2]
[329293210,1718220652218,-500.0,0.00016986,2]
[329293211,1718220652230,-901.43,0.00016986,2]
[329293212,1718220652242,-500.0,0.00016986,2]
[329293213,1718220652259,-365.95232418,0.00016986,2]
[329293214,1718220652272,-500.0,0.00016986,2]
[329293215,1718220652283,-532.66482319,0.00016986,2]
[329293216,1718220652295,-500.0,0.00016986,2]
[329293217,1718220652306,-500.0,0.00016986,2]
[329293218,1718220652317,-500.0,0.00016986,2]
[329293219,1718220652328,-500.0,0.00016986,2]
[329293220,1718220652338,-500.0,0.00016986,2]
[329293221,1718220652352,-500.0,0.00016986,2]
[329293222,1718220652362,-500.0,0.00016986,2]
[329293223,1718220652374,-500.0,0.00016986,2]
[329293224,1718220652389,-500.0,0.00016986,2]
[329293225,1718220652401,-649.1620566,0.00016986,2]
[329293226,1718220652412,-500.0,0.00016986,2]
[329293227,1718220652422,-500.0,0.00016986,2]
[329293228,1718220652433,-576.55,0.00016986,2]
[329293229,1718220652445,-500.0,0.00016986,2]
[329293230,1718220652461,-1399.88,0.00016986,2]
[329293231,1718220652472,-744.83,0.00016986,2]
[329293232,1718220652483,-500.0,0.00016986,2]
[329293233,1718220652494,-250.0,0.00016986,2]
[329293234,1718220652505,-500.0,0.00016986,4]
[329293235,1718220652517,-513.05966408,0.00016986,2]
[329293236,1718220652528,-500.0,0.00016986,2]
[329293237,1718220652544,-711.69,0.00016986,2]
[329293238,1718220652563,-1144.53,0.00016986,2]
[329293239,1718220652585,-162.32685027,0.00016986,2]
[329293240,1718220652604,-3420.82,0.00016986,2]
[329293241,1718220652621,-500.0,0.00016986,2]
[329293242,1718220652638,-4199.95,0.00016986,2]
[329293243,1718220652661,-500.0,0.00016986,2]
[329293244,1718220652676,-500.0,0.00016986,2]
[329293245,1718220652688,-500.0,0.00016986,2]
[329293246,1718220652708,-750.65,0.00016986,2]
[329293247,1718220652721,-584.03,0.00016986,2]
[329293248,1718220652743,-1030.83,0.00016986,2]
[329293249,1718220652754,-500.0,0.00016986,2]
[329293250,1718220652765,-500.0,0.00016986,2]
[329293251,1718220652779,-500.0,0.00016986,2]
[329293252,1718220652790,-500.0,0.00016986,2]
[329293253,1718220652801,-500.0,0.00016986,2]
[329293254,1718220652814,-500.0,0.00016986,2]
[329293255,1718220652826,-500.0,0.00016986,2]
[329293256,1718220652838,-4482.52,0.00016986,2]
[329293257,1718220652849,-500.0,0.00016986,2]
[329293258,1718220652859,-500.0,0.00016986,2]
[329293259,1718220652871,-1924.46,0.00016986,2]
[329293260,1718220652884,-500.0,0.00016986,2]
[329293261,1718220652895,-500.0,0.00016986,2]
[329293262,1718220652920,-2553.46,0.00016986,2]
[329293263,1718220652932,-500.0,0.00016986,2]
[329293264,1718220652946,-7018.01,0.00016986,2]
[329293265,1718220652958,-500.0,0.00016986,2]
[329293266,1718220652969,-500.0,0.00016986,2]
[329293267,1718220652979,-500.0,0.00016986,2]
[329293268,1718220652989,-500.0,0.00016986,2]
[329293269,1718220653000,-702.6,0.00016986,2]
[329293270,1718220653010,-821.16,0.00016986,2]
[329293271,1718220653021,-500.0,0.00016986,2]
[329293272,1718220653031,-500.0,0.00016986,2]
[329293273,1718220653042,-500.0,0.00016986,2]
[329293274,1718220653054,-500.0,0.00016986,2]
[329293275,1718220653066,-500.0,0.00016986,2]
[329293276,1718220653080,-500.0,0.00016986,2]
[329293277,1718220653092,-500.0,0.00016986,2]
[329293278,1718220653223,-500.0,0.00016986,2]
[329293279,1718220653234,-500.0,0.00016986,2]
[329293280,1718220653246,-5404.03,0.00016986,2]
[329293281,1718220653259,-500.0,0.00016986,2]
[329293282,1718220653271,-511.04,0.00016986,2]
[329293283,1718220653283,-500.0,0.00016986,2]
[329293284,1718220653293,-797.6,0.00016986,2]
[329293285,1718220653306,-500.0,0.00016986,2]
[329293286,1718220653318,-1096.22,0.00016986,2]